bitfinex-derivatives/quotes_BNBF0:USTF0_20250709
["timestamp","ask_amount","ask_price","bid_price","bid_amount"]
[1752090856188,0.2595688,670.7,670.09,1.51308109]
[1752090856388,0.2595688,670.7,670.1,1.51308109]
[1752090856591,0.2595688,670.7,670.11,1.51308109]
[1752090856892,0.2595688,670.7,670.12,1.51308109]
[1752090857090,0.2595688,670.7,670.13,1.51308109]
[1752090857289,0.2595688,670.7,670.14,1.51308109]
[1752090857490,0.2595688,670.7,670.03,2.035]
[1752090857694,0.2595688,670.7,670.04,1.51238031]
[1752090857894,0.2595688,670.7,670.05,1.51238031]
[1752090858195,0.2595688,670.7,670.06,1.51238031]
[1752090858391,0.2595688,670.7,670.07,1.51238031]
[1752090858590,0.2595688,670.7,670.08,1.51238031]
[1752090858791,0.2595688,670.7,670.09,1.51238031]
[1752090858995,0.2595688,670.7,670.1,1.51238031]
[1752090859195,0.2595688,670.7,670.11,1.51238031]
[1752090859397,0.2595688,670.7,670.12,1.51238031]
[1752090859594,0.2595688,670.7,670.13,1.51238031]
[1752090859790,0.2595688,670.7,670.14,1.51238031]
[1752090859993,0.2595688,670.7,670.03,2.035]
[1752090860294,0.2595688,670.7,670.04,1.51236188]
[1752090860495,0.2595688,670.7,670.05,1.51236188]
[1752090860690,0.2595688,670.7,670.06,1.51236188]
[1752090860893,0.2595688,670.7,670.07,1.51236188]
[1752090861093,0.2595688,670.7,670.08,1.51236188]
[1752090861296,0.2595688,670.7,670.09,1.51236188]
[1752090861496,0.2595688,670.7,670.1,1.51236188]
[1752090861695,0.2595688,670.7,670.11,1.51236188]
[1752090861998,0.2595688,670.7,670.12,1.51236188]
[1752090862299,0.2595688,670.7,670.13,1.51236188]
[1752090862496,0.2595688,670.7,670.03,2.035]
[1752090862696,0.2595688,670.7,670.04,1.51245032]
[1752090862896,0.2595688,670.7,670.05,1.51245032]
[1752090863097,0.2595688,670.7,670.06,1.51245032]
[1752090863300,0.2595688,670.7,670.07,1.51245032]
[1752090863600,0.2595688,670.7,670.08,1.51245032]
[1752090863802,0.2595688,670.7,670.09,1.51245032]
[1752090864098,0.2595688,670.7,670.03,2.035]
[1752090864299,0.2595688,670.7,670.04,1.51027434]
[1752090864501,0.2595688,670.7,670.03,2.035]
[1752090864702,0.2595688,670.7,670.04,1.51036938]
[1752090864903,0.2595688,670.7,670.03,2.035]
[1752090865102,0.2595688,670.7,670.04,1.51036948]
[1752090865403,0.2595688,670.7,670.03,2.035]
[1752090865699,0.2595688,670.7,670.04,1.51052476]
[1752090865898,0.2595688,670.7,670.03,2.035]
[1752090866498,3.33080557,670.68,670.03,2.035]
[1752090866700,3.33080557,670.6,670.03,2.035]
[1752090866899,3.33080557,670.64,670.03,2.035]
[1752090867203,3.33080557,670.65,670.03,2.035]
[1752090868099,3.33080557,670.66,670.03,2.035]
[1752090868403,3.33080557,670.64,670.03,2.035]
[1752090868603,3.33080557,670.63,670.03,2.035]
[1752090868801,3.33080557,670.65,670.03,2.035]
[1752090869202,3.33080557,670.66,670.03,2.035]
[1752090870206,3.33080557,670.68,669.56,1.64518116]
[1752090870405,3.33080557,670.67,669.57,1.51151139]
[1752090870606,3.33080557,670.66,669.58,1.51151139]
[1752090870907,3.33080557,670.62,669.62,1.64518116]
[1752090871102,3.33080557,670.58,669.65,1.64518116]
[1752090871300,3.33080557,670.59,669.66,1.51151139]
[1752090871500,0.2595688,670.7,669.67,1.51151139]
[1752090871701,3.33080557,670.68,669.68,1.51151139]
[1752090871907,0.2595688,670.7,669.73,1.64518116]
[1752090872201,0.2595688,670.7,669.74,1.51151139]
[1752090872408,0.2595688,670.7,669.75,1.51151139]
[1752090872606,0.2595688,670.7,669.76,1.51151139]
[1752090872806,0.2595688,670.7,669.75,1.885]
[1752090872807,0.2595688,670.7,669.77,1.51151139]
[1752090873006,0.2595688,670.7,669.78,1.51151139]
[1752090873207,0.2595688,670.7,669.79,1.51151139]
[1752090873404,0.2595688,670.7,669.8,1.51151139]
[1752090873703,0.2595688,670.7,669.81,1.51151139]
[1752090873901,0.2595688,670.7,669.82,1.51151139]
[1752090874104,0.2595688,670.7,669.83,1.51151139]
[1752090874301,0.2595688,670.7,669.75,1.885]
[1752090874302,0.2595688,670.7,669.84,1.51151139]
[1752090874506,0.2595688,670.7,669.85,1.51151139]
[1752090874703,0.2595688,670.7,669.86,1.51151139]
[1752090874902,0.2595688,670.7,669.87,1.51151139]
[1752090875102,0.2595688,670.7,669.88,1.51151139]
[1752090875309,0.2595688,670.7,669.89,1.51151139]
[1752090875509,0.2595688,670.7,669.9,1.51151139]
[1752090875710,0.2595688,670.7,669.91,1.51151139]
[1752090876013,0.2595688,670.7,669.92,1.51151139]
[1752090876311,0.2595688,670.7,669.93,1.51151139]
[1752090876506,0.2595688,670.7,669.94,1.51151139]
[1752090876705,0.2595688,670.7,669.95,1.51151139]
[1752090877011,0.2595688,670.7,669.96,1.51151139]
[1752090877208,0.2595688,670.7,669.97,1.51151139]
[1752090877413,0.2595688,670.7,669.98,1.51151139]
[1752090877708,0.2595688,670.7,669.99,1.51151139]
[1752090877910,0.2595688,670.7,669.75,1.885]
[1752090878114,0.2595688,670.7,669.76,1.51093644]
[1752090878310,0.2595688,670.7,669.77,1.51093644]
[1752090878514,0.2595688,670.7,669.78,1.51093644]
[1752090878709,0.2595688,670.7,669.79,1.51093644]
[1752090878912,0.2595688,670.7,669.8,1.51093644]
[1752090879114,0.2595688,670.7,669.81,1.51093644]
[1752090879312,0.2595688,670.7,669.82,1.51093644]
[1752090879513,0.2595688,670.7,669.83,1.51092587]
[1752090879710,0.2595688,670.7,669.75,1.885]
[1752090879711,0.2595688,670.7,669.84,1.51092587]
[1752090879912,0.2595688,670.7,669.85,1.51092587]
[1752090880114,0.2595688,670.7,669.86,1.51092587]
[1752090880315,0.2595688,670.7,669.87,1.51092587]
[1752090880614,0.2595688,670.7,669.88,1.51092587]
[1752090880812,0.2595688,670.7,669.89,1.51092587]
[1752090881116,0.2595688,670.7,669.9,1.51092587]
[1752090881312,0.2595688,670.7,669.91,1.51092587]
[1752090881517,0.2595688,670.7,669.92,1.51092587]
[1752090881717,0.2595688,670.7,669.93,1.51092587]
[1752090881914,0.2595688,670.7,669.94,1.51092587]
[1752090882119,0.2595688,670.7,669.95,1.51092587]
[1752090882319,0.2595688,670.7,669.96,1.51092587]
[1752090882618,0.2595688,670.7,669.97,1.51092587]
[1752090882818,0.2595688,670.7,669.98,1.51092587]
[1752090883121,0.2595688,670.7,669.99,1.51092587]
[1752090883315,0.2595688,670.7,670.0,1.51092587]
[1752090883516,0.2595688,670.7,670.01,1.51092587]
[1752090883721,0.2595688,670.7,670.02,1.51092587]
[1752090883918,0.2595688,670.7,670.03,1.51092587]
[1752090884118,0.2595688,670.7,669.75,1.885]
[1752090884119,0.2595688,670.7,670.04,1.51092587]
[1752090884316,0.2595688,670.7,670.05,1.51092587]
[1752090884514,0.2595688,670.7,670.06,1.51092587]
[1752090884820,0.2595688,670.7,670.07,1.51092587]
[1752090885116,0.2595688,670.7,670.08,1.51092587]
[1752090885319,0.2595688,670.7,669.89,1.64928752]
[1752090885320,0.2595688,670.7,670.09,1.51092587]
[1752090885617,0.2595688,670.7,670.1,1.51092587]
[1752090885816,0.2595688,670.7,670.11,1.51092587]
[1752090886018,0.2595688,670.7,670.12,1.51092587]
[1752090886317,0.2595688,670.7,669.87,1.64928752]
[1752090886318,0.2595688,670.7,670.13,1.51092587]
[1752090886517,0.2595688,670.7,670.14,1.51092587]
[1752090886720,0.2595688,670.7,670.15,1.51092587]
[1752090886921,0.2595688,670.7,669.8,1.64928752]
[1752090887121,0.2595688,670.7,669.81,1.50964179]
[1752090887322,0.2595688,670.7,669.82,1.50964179]
[1752090887517,0.2595688,670.7,669.83,1.50964179]
[1752090887718,0.2595688,670.7,669.84,1.50964179]
[1752090888017,0.2595688,670.7,669.85,1.50964179]
[1752090888217,0.2595688,670.7,669.86,1.50964179]
[1752090888419,0.2595688,670.7,669.87,1.50964179]
[1752090888618,0.2595688,670.7,669.88,1.50964179]
[1752090888816,0.2595688,670.7,669.89,1.50964179]
[1752090889021,0.2595688,670.7,669.9,1.50964179]
[1752090889224,0.2595688,670.7,669.91,1.50964179]
[1752090889422,0.2595688,670.7,669.92,1.50964179]
[1752090889619,0.2595688,670.7,669.93,1.50964179]
[1752090889823,0.2595688,670.7,669.94,1.50964179]
[1752090890018,0.2595688,670.7,669.95,1.50964179]
[1752090890220,3.33080557,671.07,669.96,1.50964179]
[1752090890520,0.25957558,670.63,669.97,1.50964179]
[1752090890723,3.33080557,671.07,669.98,1.50964179]
[1752090890919,3.33080557,671.07,669.99,1.50964179]
[1752090891119,3.33080557,671.07,670.0,1.50964179]
[1752090891322,3.33080557,671.07,670.01,1.50964179]
[1752090891520,3.33080557,671.07,670.02,1.50964179]
[1752090891719,3.33080557,671.07,670.03,1.50964179]
[1752090891920,0.2595688,670.81,670.04,1.50964179]
[1752090892124,0.2595688,670.81,670.05,1.50964179]
[1752090892325,0.2595688,670.81,670.06,1.50964179]
[1752090892624,0.2595688,670.81,670.07,1.50964179]
[1752090892826,0.2595688,670.81,670.08,1.50964179]
[1752090893023,0.2595688,670.81,670.09,1.50964179]
[1752090893224,0.2595688,670.81,670.1,1.50964179]
[1752090893421,0.2595688,670.81,670.11,1.50964179]
[1752090893625,0.2595688,670.81,669.77,1.64928752]
[1752090893822,0.2595688,670.81,669.78,1.50936651]
[1752090894122,0.2595688,670.81,669.79,1.50936651]
[1752090894421,0.2595688,670.81,669.8,1.50936651]
[1752090894626,0.2595688,670.81,669.81,1.50936651]
[1752090894824,0.2595688,670.81,669.82,1.50936651]
[1752090895028,0.2595688,670.81,669.83,1.50936651]
[1752090895224,0.2595688,670.81,669.84,1.50936651]
[1752090895428,0.2595688,670.81,669.85,1.50936651]
[1752090895628,0.2595688,670.81,669.86,1.50936651]
[1752090895925,0.2595688,670.81,669.87,1.50936651]
[1752090896125,0.2595688,670.81,669.88,1.50936651]
[1752090896326,0.2595688,670.81,669.89,1.50936651]
[1752090896625,0.2595688,670.81,669.9,1.50936651]
[1752090896828,0.2595688,670.81,669.91,1.50936651]
[1752090897023,0.2595688,670.81,669.92,1.50936651]
[1752090897228,0.2595688,670.81,669.93,1.50936651]
[1752090897429,0.2595688,670.81,669.94,1.50936651]
[1752090897627,0.2595688,670.81,669.95,1.50936651]
[1752090897829,0.2595688,670.81,669.96,1.50936651]
[1752090898029,0.2595688,670.81,669.97,1.50936651]
[1752090898229,0.2595688,670.81,669.98,1.50936651]
[1752090898529,0.2595688,670.81,669.99,1.50936651]
[1752090898826,0.2595688,670.81,670.0,1.50936651]
[1752090899028,0.2595688,670.81,670.01,1.50936651]
[1752090899226,0.2595688,670.81,670.02,1.50936651]
[1752090899429,0.2595688,670.81,670.03,1.50936651]
[1752090899730,0.2595688,670.81,670.04,1.50936651]
[1752090899925,0.2595688,670.81,670.05,1.50936651]
[1752090900229,0.2595688,670.81,670.06,1.50936651]
[1752090900430,0.2595688,670.81,670.07,1.50936651]
[1752090900629,0.2595688,670.81,670.08,1.50936651]
[1752090900825,0.2595688,670.81,670.09,1.50936651]
[1752090901031,0.2595688,670.81,670.1,1.50936651]
[1752090901227,0.2595688,670.81,670.11,1.50936651]
[1752090901429,0.2595688,670.81,670.12,1.50936651]
[1752090901730,0.2595688,670.81,670.13,1.50936651]
[1752090901925,0.2595688,670.81,670.14,1.50936651]
[1752090902125,0.2595688,670.81,670.15,1.50936651]
[1752090902330,0.2595688,670.81,670.16,1.50936651]
[1752090902528,0.2595688,670.81,670.17,1.50936651]
[1752090902730,0.2595688,670.81,670.18,1.50936651]
[1752090902928,0.2595688,670.81,669.91,1.64928752]
[1752090903128,0.2595688,670.81,669.92,1.50955122]
[1752090903328,0.2595688,670.81,669.93,1.50955122]
[1752090903529,0.2595688,670.81,669.94,1.50955122]
[1752090903732,0.2595688,670.81,669.95,1.50955122]
[1752090904029,0.2595688,670.81,669.96,1.50955122]
[1752090904229,0.2595688,670.81,669.97,1.50955122]
[1752090904429,0.2595688,670.81,669.98,1.50955122]
[1752090904729,0.2595688,670.81,669.99,1.50955122]
[1752090904934,0.2595688,670.81,670.0,1.50955122]
[1752090905133,0.2595688,670.81,670.01,1.50955122]
[1752090905435,0.2595688,670.81,670.02,1.50955122]
[1752090905633,0.2595688,670.81,670.03,1.50955122]
[1752090905933,0.2595688,670.81,670.04,1.50955122]
[1752090906138,0.2595688,670.81,670.05,1.50955122]
[1752090906333,0.2595688,670.81,670.06,1.50955122]
[1752090906534,0.2595688,670.81,670.07,1.50955122]
[1752090906834,0.2595688,670.81,670.08,1.50955122]
[1752090907034,0.2595688,670.81,670.09,1.50955122]
[1752090907234,0.2595688,670.81,670.1,1.50955122]
[1752090907439,0.2595688,670.81,670.11,1.50955122]
[1752090907636,0.2595688,670.81,670.12,1.50955122]
[1752090907939,0.2595688,670.81,670.13,1.50955122]
[1752090908140,0.2595688,670.81,670.14,1.50955122]
[1752090908336,0.2595688,670.81,670.15,1.50955122]
[1752090908536,0.2595688,670.81,670.16,1.50955122]
[1752090908739,0.2595688,670.81,669.87,1.64928752]
[1752090908936,0.2595688,670.81,669.88,1.50945705]
[1752090909241,0.2595688,670.81,669.89,1.50944067]
[1752090909542,0.2595688,670.81,669.9,1.50944067]
[1752090909736,0.2595688,670.81,669.91,1.50944067]
[1752090909935,0.2595688,670.81,669.92,1.50944067]
[1752090910135,0.2595688,670.81,669.93,1.50944067]
[1752090910440,0.2595688,670.81,669.94,1.50944067]
[1752090910637,0.2595688,670.81,669.95,1.50944067]
[1752090910837,0.2595688,670.81,669.96,1.50944067]
[1752090911040,0.2595688,670.81,669.97,1.50944067]
[1752090911341,0.2595688,670.81,669.98,1.50944067]
[1752090911544,0.2595688,670.81,669.99,1.50944067]
[1752090911740,0.2595688,670.81,670.0,1.50944067]
[1752090912044,0.2595688,670.81,670.01,1.50944067]
[1752090912240,0.2595688,670.81,670.02,1.50944067]
[1752090912440,0.2595688,670.81,670.03,1.50944067]
[1752090912743,0.2595688,670.81,670.04,1.50944067]
[1752090912943,0.2595688,670.81,670.05,1.50944067]
[1752090913141,0.2595688,670.81,669.77,1.64718308]
[1752090913443,0.2595688,670.81,669.78,1.51014096]
[1752090913641,0.2595688,670.81,669.79,1.51014096]
[1752090913840,0.2595688,670.81,669.8,1.51014096]
[1752090914041,0.2595688,670.81,669.81,1.51014096]
[1752090914242,0.2595688,670.81,669.82,1.51014096]
[1752090914446,0.2595688,670.81,669.83,1.51014096]
[1752090914644,0.2595688,670.81,669.84,1.51014096]
[1752090914945,0.2595688,670.81,669.85,1.51014096]
[1752090915149,0.2595688,670.81,669.86,1.51013615]
[1752090915443,0.2595688,670.81,669.87,1.51013615]
[1752090915645,0.2595688,670.81,669.88,1.51013615]
[1752090915849,0.2595688,670.81,669.76,1.64797651]
[1752090915850,0.2595688,670.81,669.89,1.51013615]
[1752090916049,0.2595688,670.81,669.9,1.51013615]
[1752090916249,0.2595688,670.81,669.91,1.51013615]
[1752090916550,0.2595688,670.81,669.92,1.51013615]
[1752090916849,0.2595688,670.81,669.93,1.51013615]
[1752090917049,0.2595688,670.81,669.94,1.51013615]
[1752090917251,0.2595688,670.81,669.95,1.51013615]
[1752090917449,0.2595688,670.81,669.96,1.51013615]
[1752090917649,0.2595688,670.81,669.97,1.51013615]
[1752090917846,0.2595688,670.81,669.98,1.51013615]
[1752090918049,0.2595688,670.81,669.99,1.51013615]
[1752090918252,0.2595688,670.81,670.0,1.51013615]
[1752090918545,0.2595688,670.81,670.01,1.51013615]
[1752090918751,0.2595688,670.81,670.02,1.51013615]
[1752090919051,0.2595688,670.81,670.03,1.51013615]
[1752090919249,0.2595688,670.81,670.04,1.51013615]
[1752090919452,0.2595688,670.81,670.05,1.51013615]
[1752090919647,0.2595688,670.81,670.06,1.51013615]
[1752090919946,0.2595688,670.81,669.75,1.64797651]
[1752090920151,0.2595688,670.81,669.76,1.51026533]
[1752090920452,0.2595688,670.81,669.77,1.51026533]
[1752090920653,0.2595688,670.81,669.78,1.51026533]
[1752090920853,0.2595688,670.81,669.79,1.51026533]
[1752090921153,0.2595688,670.81,669.8,1.51026533]
[1752090921454,0.2595688,670.81,669.81,1.51026533]
[1752090921651,0.2595688,670.81,669.82,1.51026533]
[1752090921954,0.2595688,670.81,669.83,1.51026533]
[1752090922155,0.2595688,670.81,669.84,1.51026533]
[1752090922455,0.2595688,670.81,669.85,1.51026533]
[1752090922654,0.2595688,670.81,669.86,1.51026533]
[1752090922854,0.2595688,670.81,669.87,1.51026533]
[1752090923048,0.2595688,670.81,669.88,1.51026533]
[1752090923251,0.2595688,670.81,669.89,1.51026533]
[1752090923451,0.2595688,670.81,669.9,1.51026533]
[1752090923748,0.2595688,670.81,669.84,1.64797651]
[1752090923749,0.2595688,670.81,669.91,1.51026533]
[1752090923955,0.2595688,670.81,669.92,1.51026533]
[1752090924259,0.2595688,670.81,669.93,1.51026533]
[1752090924455,0.2595688,670.81,669.94,1.51026533]
[1752090924655,0.2595688,670.81,669.95,1.51026533]
[1752090924951,0.2595688,670.81,669.96,1.51026533]
[1752090925153,0.2595688,670.81,669.97,1.51026533]
[1752090925349,0.2595688,670.81,669.98,1.51026533]
[1752090925552,0.2595688,670.81,669.99,1.51026533]
[1752090925751,0.2595688,670.81,670.0,1.51026533]
[1752090925951,0.2595688,670.81,669.79,2.099]
[1752090925952,0.2595688,670.81,670.01,1.51026533]
[1752090926155,0.2595688,670.81,670.02,1.51026533]
[1752090926353,0.2595688,670.81,670.03,1.51026533]
[1752090926552,0.2595688,670.81,670.04,1.51026533]
[1752090926751,0.2595688,670.81,670.05,1.51026533]
[1752090926952,0.2595688,670.81,670.06,1.51026533]
[1752090927155,0.2595688,670.81,670.07,1.51026533]
[1752090927457,0.2595688,670.81,670.08,1.51026533]
[1752090927659,0.2595688,670.81,670.09,1.51026533]
[1752090927857,0.2595688,670.81,670.1,1.51026533]
[1752090928054,0.2595688,670.81,670.11,1.51026533]
[1752090928258,0.2595688,670.81,670.12,1.51026533]
[1752090928458,0.2595688,670.81,670.13,1.51026533]
[1752090928657,0.2595688,670.81,670.14,1.51026533]
[1752090928861,0.2595688,670.81,670.15,1.51026533]
[1752090929060,0.2595688,670.81,669.85,1.64797651]
[1752090929362,0.2595688,670.81,669.86,1.50902075]
[1752090929560,0.2595688,670.81,669.87,1.50902075]
[1752090929859,0.2595688,670.81,669.88,1.50902075]
[1752090930058,0.2595688,670.81,669.89,1.50902075]
[1752090930255,0.2595688,670.81,669.9,1.50902075]
[1752090930459,0.2595688,670.81,669.91,1.50902075]
[1752090930759,0.2595688,670.81,669.92,1.50902075]
[1752090931056,0.2595688,670.81,669.93,1.50902075]
[1752090931259,0.2595688,670.81,669.94,1.50902075]
[1752090931460,0.2595688,670.81,669.95,1.50902075]
[1752090931658,0.2595688,670.81,669.96,1.50902075]
[1752090931856,0.2595688,670.81,669.97,1.50902075]
[1752090932061,0.2595688,670.81,669.98,1.50902075]
[1752090932258,0.2595688,670.81,669.99,1.50902075]
[1752090932559,0.2595688,670.81,670.0,1.50902075]
[1752090932862,0.2595688,670.81,670.01,1.50902075]
[1752090933063,0.2595688,670.81,670.02,1.50902075]
[1752090933359,0.2595688,670.81,670.03,1.50902075]
[1752090933563,0.2595688,670.81,670.04,1.50902075]
[1752090933764,0.2595688,670.81,670.05,1.50902075]
[1752090933964,0.2595688,670.81,670.06,1.50902075]
[1752090934162,0.2595688,670.81,670.07,1.50902075]
[1752090934364,0.2595688,670.81,670.08,1.50902075]
[1752090934565,0.2595688,670.81,670.09,1.50902075]
[1752090934766,0.2595688,670.81,670.1,1.50902075]
[1752090934966,0.2595688,670.81,670.11,1.50902075]
[1752090935262,0.2595688,670.81,670.12,1.50902075]
[1752090935467,0.2595688,670.81,670.13,1.510683]
[1752090935667,0.2595688,670.81,670.14,1.510683]
[1752090935863,0.2595688,670.81,670.15,1.510683]
[1752090936162,0.2595688,670.81,670.16,1.510683]
[1752090936368,0.2595688,670.81,670.17,1.510683]
[1752090936663,0.2595688,670.81,670.18,1.510683]
[1752090936867,0.2595688,670.81,670.19,1.510683]
[1752090937067,0.2595688,670.81,669.79,2.099]
[1752090937368,0.2595688,670.81,669.8,1.51095051]
[1752090937566,0.2595688,670.81,669.81,1.51095051]
[1752090937768,0.2595688,670.81,669.82,1.51095051]
[1752090937969,0.2595688,670.81,669.83,1.51095051]
[1752090938163,0.2595688,670.81,669.84,1.51095051]
[1752090938368,3.33080557,670.77,669.86,1.65110814]
[1752090938668,3.33080557,670.77,669.87,1.51095051]
[1752090938864,3.59037437,670.81,669.88,1.51095051]
[1752090939063,3.59037437,670.81,669.89,1.51095051]
[1752090939266,3.33080557,670.8,669.9,1.51095051]
[1752090939464,3.33080557,670.8,669.91,1.51095051]
[1752090939666,3.33080557,670.79,669.92,1.51095051]
[1752090939970,3.33080557,670.78,669.93,1.51095051]
[1752090940269,3.33080557,670.77,669.94,1.51095051]
[1752090940469,3.33080557,670.78,669.95,1.51095051]
[1752090940670,3.33080557,670.78,669.96,1.51095051]
[1752090940966,3.33080557,670.79,669.97,1.51095051]
[1752090941168,3.33080557,670.77,669.98,1.51095051]
[1752090941466,3.33080557,670.75,669.99,1.51095051]
[1752090941666,3.33080557,670.73,670.0,1.51095051]
[1752090941863,3.33080557,670.72,670.01,1.51095051]
[1752090942067,3.59037437,670.81,670.02,1.51095051]
[1752090942269,0.2595688,670.81,670.03,1.51095051]
[1752090942466,0.2595688,670.81,670.04,1.51095051]
[1752090942665,0.2595688,670.81,670.05,1.51095051]
[1752090942871,0.2595688,670.81,670.06,1.51095051]
[1752090943170,0.2595688,670.81,670.07,1.51095051]
[1752090943372,0.2595688,670.81,670.08,1.51095051]
[1752090943672,3.33080557,670.79,670.09,1.51095051]
[1752090943868,3.33080557,670.8,669.79,3.75010814]
[1752090944071,3.33080557,670.79,669.8,1.51202611]
[1752090944272,3.33080557,670.79,669.81,1.51202611]
[1752090944469,3.33080557,670.8,669.82,1.51202611]
[1752090944671,0.25971312,670.55,669.83,1.51202611]
[1752090944873,0.25971312,670.55,669.84,1.51202611]
[1752090945073,0.25971312,670.55,669.85,1.51202611]
[1752090945270,3.33080557,670.85,669.86,1.51202611]
[1752090945469,3.33080557,670.84,669.87,1.51202611]
[1752090945773,3.33080557,670.84,669.88,1.51202611]
[1752090945973,3.33080557,670.84,669.89,1.51202611]
[1752090946174,3.33080557,670.84,669.9,1.51202611]
[1752090946471,0.2597044,670.61,669.91,1.51202611]
[1752090946774,0.2597044,670.61,669.92,1.51202611]
[1752090946968,0.2597044,670.61,669.93,1.51202611]
[1752090947170,0.2597044,670.61,669.94,1.51202611]
[1752090947368,0.2597044,670.61,669.95,1.51202611]
[1752090947572,0.2597044,670.61,669.96,1.51202611]
[1752090947772,0.2597044,670.61,669.97,1.51202611]
[1752090948071,0.2597044,670.61,669.98,1.51202611]
[1752090948270,0.2597044,670.61,669.79,2.099]
[1752090948576,3.33080557,670.53,669.8,1.5131057]
[1752090948875,3.33080557,670.31,669.79,2.099]
[1752090949071,3.33080557,670.06,669.79,2.099]
[1752090949369,3.33080557,670.18,669.79,2.099]
[1752090950070,3.33080557,670.44,669.79,2.099]
[1752090950676,3.33080557,670.43,669.79,2.099]
[1752090951176,3.33080557,670.51,669.79,2.099]
[1752090951573,0.2597044,670.61,669.79,2.099]
[1752090951574,3.33080557,670.45,669.79,2.099]
[1752090952174,3.33080557,670.54,669.79,2.099]
[1752090952377,3.33080557,670.37,669.79,2.099]
[1752090952776,3.33080557,670.47,669.79,2.099]
[1752090953079,3.33080557,670.39,669.79,2.099]
[1752090953378,3.33080557,670.36,669.79,2.099]
[1752090953578,3.33080557,670.35,669.79,2.099]
[1752090953878,3.33080557,670.46,669.79,2.099]
[1752090954179,3.33080557,670.51,669.79,2.099]
[1752090954479,2.21717842,670.21,669.79,2.099]
[1752090954881,2.21717842,670.31,669.79,2.099]
[1752090955180,2.21717842,670.34,669.79,2.099]
[1752090955380,2.21717842,670.26,669.79,2.099]
[1752090955776,2.21717842,670.04,669.79,2.099]
[1752090956079,0.2597044,670.61,669.79,2.099]
[1752090956080,2.21717842,670.09,669.79,2.099]
[1752090956379,2.21717842,670.01,669.79,2.099]
[1752090956581,2.21717842,669.94,669.79,2.099]
[1752090956977,2.21717842,669.86,669.79,2.099]
[1752090957281,2.21717842,669.98,669.79,2.099]
[1752090957782,2.21717842,670.03,669.79,2.099]
[1752090957980,2.21717842,670.07,669.79,2.099]
[1752090958178,2.21717842,670.11,669.79,2.099]
[1752090959082,2.21717842,670.14,669.79,2.099]
[1752090959279,2.21717842,670.1,669.79,2.099]
[1752090959582,2.21717842,670.12,669.79,2.099]
[1752090959783,2.21717842,670.13,669.79,2.099]
[1752090960177,2.21717842,670.08,669.79,2.099]
[1752090960381,2.21717842,670.07,669.79,2.099]
[1752090960583,2.21717842,670.08,669.79,2.099]
[1752090960877,2.21717842,670.07,669.79,2.099]
[1752090961179,2.21717842,670.08,669.79,2.099]
[1752090961378,2.21717842,670.09,669.79,2.099]
[1752090962278,2.21717842,670.08,669.79,2.099]
[1752090962582,2.21717842,670.06,669.79,2.099]
[1752090963182,2.21717842,670.13,669.79,2.099]
[1752090963481,2.21717842,670.29,669.79,2.099]
[1752090963682,2.21717842,670.31,669.79,2.099]
[1752090963883,2.21717842,670.29,669.79,2.099]
[1752090964778,2.21717842,670.28,669.79,2.099]
[1752090964977,2.21717842,670.29,669.79,2.099]
[1752090965480,2.21717842,670.31,669.79,2.099]
[1752090965980,2.21717842,670.29,669.79,2.099]
[1752090966378,2.21717842,670.3,669.79,2.099]
[1752090966580,2.21717842,670.29,669.79,2.099]
[1752090966778,2.21717842,670.25,669.79,2.099]
[1752090966979,2.21717842,670.18,669.79,2.099]
[1752090967380,2.21717842,670.15,669.79,2.099]
[1752090967580,2.21717842,670.13,669.79,2.099]
[1752090967785,0.2597044,670.61,669.79,2.099]
[1752090967786,2.21717842,670.08,669.79,2.099]
[1752090968185,2.21717842,670.09,669.79,2.099]
[1752090968485,2.21717842,670.09,669.79,0.23013952]
[1752090968681,2.21717842,670.1,669.79,0.23013952]
[1752090969382,2.21717842,670.15,669.79,0.23013952]
[1752090969581,2.21717842,670.14,669.79,0.23013952]
[1752090969885,2.21717842,670.25,669.79,0.23013952]
[1752090970386,2.21717842,670.26,669.79,0.23013952]
[1752090971482,2.21717842,670.27,669.79,0.23013952]
[1752090972282,2.21717842,670.04,669.79,0.23013952]
[1752090972484,2.21717842,670.06,669.79,0.23013952]
[1752090972683,2.21717842,670.22,669.79,0.23013952]
[1752090973183,2.21717842,670.23,669.79,0.23013952]
[1752090973882,2.21717842,670.21,669.79,0.23013952]
[1752090974086,2.21717842,670.21,668.44,0.25994301]
[1752090974282,2.21717842,670.2,668.44,0.25994301]
[1752090974488,2.21717842,670.21,668.44,0.25994301]
[1752090974688,2.21717842,670.19,668.44,0.25994301]
[1752090975690,3.33080557,670.36,668.44,0.25994301]
[1752090975889,0.2597044,670.61,668.44,0.25994301]
[1752090978792,2.18942082,670.15,668.44,0.25994301]
[1752090979092,2.18942082,670.09,668.44,0.25994301]
[1752090979290,2.18942082,670.03,668.44,0.25994301]
[1752090979588,2.18942082,670.12,668.44,0.25994301]
[1752090979787,2.18942082,670.1,668.44,0.25994301]
[1752090979991,2.18942082,670.12,668.44,0.25994301]
[1752090980591,2.18942082,670.11,668.44,0.25994301]